[Event "Titled Tuesday Blitz March 07 Early 2023"]
[White "Araujo, Everson De Moura"]
[Black "Hamedi Nia, Vesal"]
[WhiteFideId "22737197"]
[BlackFideId "12542253"]
[WhiteElo "2035"]
[BlackElo "1822"]
[Result "1-0"]
[Round "04"]
[TimeControl "180+2"]
[Date "2023.03.07"]
[WhiteClock "0:00:03"]
[BlackClock "0:00:01"]

1. c4 {[%clk 0:03:00]}  e6 {[%clk 0:02:19]} 2. Nf3 {[%clk 0:03:00]}  d5 {[%clk 0:02:19]} 3. e3 {[%clk 0:02:59]}  Nf6 {[%clk 0:02:20]} 4. b3 {[%clk 0:02:58]}  Be7 {[%clk 0:02:20]} 5. Bb2 {[%clk 0:02:57]}  O-O {[%clk 0:02:19]} 6. d4 {[%clk 0:02:58]}  a5 {[%clk 0:02:19]} 7. Bd3 {[%clk 0:02:57]}  c6 {[%clk 0:02:19]} 8. Nbd2 {[%clk 0:02:56]}  Na6 {[%clk 0:02:20]} 9. Rc1 {[%clk 0:02:54]}  Nb4 {[%clk 0:02:20]} 10. Bb1 {[%clk 0:02:54]}  b5 {[%clk 0:02:20]} 11. a3 {[%clk 0:02:53]}  Na6 {[%clk 0:02:20]} 12. c5 {[%clk 0:02:51]}  b4 {[%clk 0:02:16]} 13. a4 {[%clk 0:02:51]}  Nc7 {[%clk 0:02:16]} 14. O-O {[%clk 0:02:49]}  Ba6 {[%clk 0:02:16]} 15. Re1 {[%clk 0:02:49]}  Nd7 {[%clk 0:02:16]} 16. e4 {[%clk 0:02:49]}  Re8 {[%clk 0:02:11]} 17. Re3 {[%clk 0:02:41]}  dxe4 {[%clk 0:02:09]} 18. Rxe4 {[%clk 0:02:23]}  Nd5 {[%clk 0:02:02]} 19. Ne5 {[%clk 0:02:12]}  Nxe5 {[%clk 0:01:59]} 20. Rxe5 {[%clk 0:02:11]}  Bf6 {[%clk 0:01:59]} 21. Rh5 {[%clk 0:02:08]}  h6 {[%clk 0:01:58]} 22. Qg4 {[%clk 0:02:04]}  Kf8 {[%clk 0:01:49]} 23. Ne4 {[%clk 0:01:59]}  Nc3 {[%clk 0:01:27]} 24. Nxc3 {[%clk 0:01:29]}  bxc3 {[%clk 0:01:24]} 25. Bxc3 {[%clk 0:01:19]}  Rb8 {[%clk 0:01:19]} 26. Bc2 {[%clk 0:01:18]}  Qc7 {[%clk 0:01:04]} 27. Re1 {[%clk 0:01:10]}  Rbd8 {[%clk 0:00:53]} 28. Qe4 {[%clk 0:00:33]}  Rd5 {[%clk 0:00:46]} 29. Rxd5 {[%clk 0:00:30]}  cxd5 {[%clk 0:00:46]} 30. Qe3 {[%clk 0:00:28]}  Rb8 {[%clk 0:00:40]} 31. Qd2 {[%clk 0:00:28]}  Bd8 {[%clk 0:00:34]} 32. f4 {[%clk 0:00:28]}  Bc8 {[%clk 0:00:21]} 33. Re2 {[%clk 0:00:16]}  Ba6 {[%clk 0:00:19]} 34. Re3 {[%clk 0:00:14]}  Ra8 {[%clk 0:00:17]} 35. f5 {[%clk 0:00:12]}  exf5 {[%clk 0:00:14]} 36. Rf3 {[%clk 0:00:10]}  Bg5 {[%clk 0:00:13]} 37. Qf2 {[%clk 0:00:08]}  f4 {[%clk 0:00:12]} 38. Bd2 {[%clk 0:00:06]}  Re8 {[%clk 0:00:11]} 39. Bd1 {[%clk 0:00:05]}  Qe7 {[%clk 0:00:09]} 40. Bxf4 {[%clk 0:00:05]}  Bxf4 {[%clk 0:00:09]} 41. Rxf4 {[%clk 0:00:05]}  Qe1+ {[%clk 0:00:09]} 42. Qxe1 {[%clk 0:00:05]}  Rxe1+ {[%clk 0:00:10]} 43. Kf2 {[%clk 0:00:04]}  Rxd1 {[%clk 0:00:10]} 44. Rf5 {[%clk 0:00:05]}  Rd2+ {[%clk 0:00:09]} 45. Ke3 {[%clk 0:00:05]}  Rd3+ {[%clk 0:00:09]} 46. Kf4 {[%clk 0:00:03]}  Rxd4+ {[%clk 0:00:09]} 47. Ke5 {[%clk 0:00:04]}  Rb4 {[%clk 0:00:08]} 48. Kxd5 {[%clk 0:00:05]}  Rxb3 {[%clk 0:00:07]} 49. c6 {[%clk 0:00:05]}  Rc3 {[%clk 0:00:08]} 50. Kd6 {[%clk 0:00:05]}  Bc8 {[%clk 0:00:05]} 51. Re5 {[%clk 0:00:06]}  f6 {[%clk 0:00:04]} 52. Rxa5 {[%clk 0:00:04]}  Bg4 {[%clk 0:00:04]} 53. Ra8+ {[%clk 0:00:05]}  Kf7 {[%clk 0:00:03]} 54. c7 {[%clk 0:00:05]}  Kg6 {[%clk 0:00:03]} 55. c8=Q {[%clk 0:00:06]}  Bxc8 {[%clk 0:00:03]} 56. Rb8 {[%clk 0:00:06]}  Rd3+ {[%clk 0:00:02]} 57. Ke7 {[%clk 0:00:04]}  Bf5 {[%clk 0:00:02]} 58. a5 {[%clk 0:00:04]}  Re3+ {[%clk 0:00:03]} 59. Kd6 {[%clk 0:00:03]}  Ra3 {[%clk 0:00:03]} 60. Rb5 {[%clk 0:00:03]}  Bd3 {[%clk 0:00:02]} 61. Rd5 {[%clk 0:00:02]}  Bf1 {[%clk 0:00:02]} 62. g3 {[%clk 0:00:02]}  h5 {[%clk 0:00:02]} 63. Kc5 {[%clk 0:00:03]}  Bg2 {[%clk 0:00:01]} 64. Kb6 {[%clk 0:00:03]}  Re3 {[%clk 0:00:01]} 65. Rc5 {[%clk 0:00:03]} 1-0


[Site "https://www.chess.com"]

[Event "Titled Tuesday Blitz March 07 Early 2023"]
[White "Sanchez, Robert"]
[Black "Sabar, Ethmane Daouda"]
[WhiteFideId "2034360"]
[BlackFideId "19600097"]
[WhiteElo "2338"]
[BlackElo "1950"]
[Result "0-1"]
[Round "04"]
[TimeControl "180+2"]
[Date "2023.03.07"]
[WhiteClock "0:01:59"]
[BlackClock "0:00:32"]

1. Nf3 {[%clk 0:03:00]}  d5 {[%clk 0:02:56]} 2. e3 {[%clk 0:03:00]}  e6 {[%clk 0:02:56]} 3. c4 {[%clk 0:03:00]}  c6 {[%clk 0:02:56]} 4. Nc3 {[%clk 0:03:01]}  f5 {[%clk 0:02:52]} 5. d4 {[%clk 0:02:59]}  Nf6 {[%clk 0:02:52]} 6. Ne5 {[%clk 0:02:59]}  Bd6 {[%clk 0:02:48]} 7. Bd3 {[%clk 0:02:59]}  Nbd7 {[%clk 0:02:46]} 8. f4 {[%clk 0:02:58]}  O-O {[%clk 0:02:43]} 9. O-O {[%clk 0:02:58]}  Ne4 {[%clk 0:02:44]} 10. Nxe4 {[%clk 0:02:48]}  fxe4 {[%clk 0:02:43]} 11. Nxd7 {[%clk 0:02:49]}  Bxd7 {[%clk 0:02:40]} 12. Be2 {[%clk 0:02:49]}  Be8 {[%clk 0:02:38]} 13. Bg4 {[%clk 0:02:47]}  Qe7 {[%clk 0:02:20]} 14. c5 {[%clk 0:02:47]}  Bc7 {[%clk 0:02:19]} 15. b4 {[%clk 0:02:46]}  a6 {[%clk 0:02:14]} 16. a4 {[%clk 0:02:45]}  Bg6 {[%clk 0:02:12]} 17. Rb1 {[%clk 0:02:39]}  Bf5 {[%clk 0:02:10]} 18. b5 {[%clk 0:02:38]}  axb5 {[%clk 0:02:08]} 19. axb5 {[%clk 0:02:38]}  Ra2 {[%clk 0:01:42]} 20. bxc6 {[%clk 0:02:35]}  bxc6 {[%clk 0:01:41]} 21. Rb7 {[%clk 0:02:35]}  Rb8 {[%clk 0:00:46]} 22. Rxb8+ {[%clk 0:02:32]}  Bxb8 {[%clk 0:00:47]} 23. Qb3 {[%clk 0:02:29]}  Ra8 {[%clk 0:00:46]} 24. Be2 {[%clk 0:02:26]}  Bc7 {[%clk 0:00:44]} 25. Bd2 {[%clk 0:02:24]}  Bd8 {[%clk 0:00:41]} 26. g4 {[%clk 0:02:19]}  Bg6 {[%clk 0:00:39]} 27. f5 {[%clk 0:02:19]}  exf5 {[%clk 0:00:38]} 28. gxf5 {[%clk 0:02:20]}  Bf7 {[%clk 0:00:38]} 29. Kh1 {[%clk 0:02:07]}  h6 {[%clk 0:00:37]} 30. f6 {[%clk 0:02:04]}  gxf6 {[%clk 0:00:35]} 31. Bg4 {[%clk 0:02:02]}  Be6 {[%clk 0:00:32]} 32. Rg1 {[%clk 0:02:02]}  Kh8 {[%clk 0:00:32]} 33. Bxe6 {[%clk 0:02:00]}  Qxe6 {[%clk 0:00:32]} 34. Qb7 {[%clk 0:01:59]} 0-1


[Site "https://www.chess.com"]

[Event "Titled Tuesday Blitz March 07 Early 2023"]
[White "Aanan, Shafiuddin"]
[Black "Clawitter, Craig"]
[WhiteFideId "3242633"]
[BlackFideId "2023105"]
[WhiteElo "1648"]
[BlackElo "2287"]
[Result "0-1"]
[Round "04"]
[TimeControl "180+2"]
[Date "2023.03.07"]
[WhiteClock "0:00:03"]
[BlackClock "0:00:10"]

1. e4 {[%clk 0:03:00]}  e6 {[%clk 0:03:00]} 2. d3 {[%clk 0:02:59]}  d5 {[%clk 0:03:00]} 3. Nd2 {[%clk 0:02:59]}  Nf6 {[%clk 0:03:01]} 4. Ngf3 {[%clk 0:02:59]}  Bc5 {[%clk 0:03:01]} 5. e5 {[%clk 0:02:46]}  Nfd7 {[%clk 0:03:02]} 6. d4 {[%clk 0:02:46]}  Be7 {[%clk 0:03:02]} 7. c3 {[%clk 0:02:46]}  c5 {[%clk 0:03:03]} 8. Bd3 {[%clk 0:02:38]}  Nc6 {[%clk 0:03:03]} 9. a3 {[%clk 0:02:37]}  a5 {[%clk 0:02:56]} 10. Bc2 {[%clk 0:01:45]}  cxd4 {[%clk 0:02:37]} 11. cxd4 {[%clk 0:01:44]}  Qb6 {[%clk 0:02:37]} 12. O-O {[%clk 0:01:22]}  Nxd4 {[%clk 0:02:34]} 13. Nxd4 {[%clk 0:01:18]}  Qxd4 {[%clk 0:02:35]} 14. Nf3 {[%clk 0:01:16]}  Qxd1 {[%clk 0:02:35]} 15. Rxd1 {[%clk 0:01:16]}  b6 {[%clk 0:02:06]} 16. Ba4 {[%clk 0:01:16]}  Ba6 {[%clk 0:01:59]} 17. Be3 {[%clk 0:01:15]}  b5 {[%clk 0:01:55]} 18. Bc2 {[%clk 0:01:12]}  O-O {[%clk 0:01:36]} 19. Bd3 {[%clk 0:01:02]}  Rfc8 {[%clk 0:01:28]} 20. Rac1 {[%clk 0:01:00]}  Nc5 {[%clk 0:01:17]} 21. Be2 {[%clk 0:00:59]}  b4 {[%clk 0:01:11]} 22. Bxa6 {[%clk 0:00:57]}  Nxa6 {[%clk 0:01:08]} 23. axb4 {[%clk 0:00:58]}  Nxb4 {[%clk 0:00:55]} 24. Nd4 {[%clk 0:00:58]}  Kf8 {[%clk 0:00:49]} 25. Kf1 {[%clk 0:00:38]}  Ke8 {[%clk 0:00:45]} 26. Ke2 {[%clk 0:00:38]}  Kd7 {[%clk 0:00:45]} 27. Nb5 {[%clk 0:00:27]}  Rab8 {[%clk 0:00:36]} 28. Na7 {[%clk 0:00:19]}  Rxc1 {[%clk 0:00:31]} 29. Rxc1 {[%clk 0:00:19]}  Na2 {[%clk 0:00:30]} 30. Rc2 {[%clk 0:00:17]}  Nb4 {[%clk 0:00:27]} 31. Rc1 {[%clk 0:00:13]}  Bd8 {[%clk 0:00:12]} 32. Bc5 {[%clk 0:00:07]}  Bb6 {[%clk 0:00:12]} 33. Bxb4 {[%clk 0:00:05]}  axb4 {[%clk 0:00:10]} 34. Nc6 {[%clk 0:00:03]}  Rc8 {[%clk 0:00:10]} 0-1


[Site "https://www.chess.com"]

[Event "Titled Tuesday Blitz March 07 Early 2023"]
[White "Winkels, Marcel"]
[Black "Alhadad, Mahmoud"]
[WhiteFideId "1003887"]
[BlackFideId "11501863"]
[WhiteElo "1900"]
[BlackElo "1955"]
[Result "0-1"]
[Round "04"]
[TimeControl "180+2"]
[Date "2023.03.07"]
[WhiteClock "0:00:07"]
[BlackClock "0:00:14"]

1. e4 {[%clk 0:02:54]}  d5 {[%clk 0:02:59]} 2. exd5 {[%clk 0:02:53]}  Nf6 {[%clk 0:02:58]} 3. d4 {[%clk 0:02:52]}  Bg4 {[%clk 0:02:58]} 4. Be2 {[%clk 0:02:48]}  Bxe2 {[%clk 0:02:58]} 5. Qxe2 {[%clk 0:02:47]}  Qxd5 {[%clk 0:02:58]} 6. Nf3 {[%clk 0:02:46]}  Nc6 {[%clk 0:02:58]} 7. Nc3 {[%clk 0:02:46]}  Qh5 {[%clk 0:02:54]} 8. d5 {[%clk 0:02:43]}  Nxd5 {[%clk 0:02:44]} 9. Qb5 {[%clk 0:02:42]}  O-O-O {[%clk 0:02:09]} 10. Bd2 {[%clk 0:02:20]}  Nf6 {[%clk 0:01:52]} 11. Qxh5 {[%clk 0:02:13]}  Nxh5 {[%clk 0:01:53]} 12. Ng5 {[%clk 0:02:14]}  Ne5 {[%clk 0:01:11]} 13. f4 {[%clk 0:01:56]}  h6 {[%clk 0:01:09]} 14. fxe5 {[%clk 0:01:41]}  hxg5 {[%clk 0:01:09]} 15. Bxg5 {[%clk 0:01:40]}  f6 {[%clk 0:01:04]} 16. exf6 {[%clk 0:01:34]}  exf6 {[%clk 0:01:02]} 17. Bd2 {[%clk 0:01:31]}  Ng3 {[%clk 0:00:51]} 18. Rg1 {[%clk 0:01:24]}  Rxh2 {[%clk 0:00:50]} 19. Bf4 {[%clk 0:01:23]}  Bc5 {[%clk 0:00:35]} 20. Bxg3 {[%clk 0:01:06]}  Bxg1 {[%clk 0:00:35]} 21. Bxh2 {[%clk 0:01:06]}  Bxh2 {[%clk 0:00:35]} 22. Ke2 {[%clk 0:01:06]}  c6 {[%clk 0:00:34]} 23. Kf3 {[%clk 0:01:00]}  Be5 {[%clk 0:00:33]} 24. Ne4 {[%clk 0:00:26]}  Bxb2 {[%clk 0:00:30]} 25. Rb1 {[%clk 0:00:26]}  Bd4 {[%clk 0:00:22]} 26. c3 {[%clk 0:00:25]}  Bb6 {[%clk 0:00:21]} 27. a4 {[%clk 0:00:24]}  f5 {[%clk 0:00:19]} 28. Ng5 {[%clk 0:00:22]}  Rd3+ {[%clk 0:00:19]} 29. Kf4 {[%clk 0:00:22]}  Be3+ {[%clk 0:00:13]} 30. Kxf5 {[%clk 0:00:21]}  Bxg5 {[%clk 0:00:12]} 31. Kxg5 {[%clk 0:00:22]}  Rxc3 {[%clk 0:00:13]} 32. g4 {[%clk 0:00:21]}  Rc4 {[%clk 0:00:10]} 33. a5 {[%clk 0:00:19]}  Rc5+ {[%clk 0:00:10]} 34. Kg6 {[%clk 0:00:19]}  Rxa5 {[%clk 0:00:10]} 35. Kxg7 {[%clk 0:00:19]}  Rg5+ {[%clk 0:00:10]} 36. Kf6 {[%clk 0:00:18]}  Rxg4 {[%clk 0:00:10]} 37. Re1 {[%clk 0:00:19]}  Rd4 {[%clk 0:00:10]} 38. Re7 {[%clk 0:00:19]}  Rd7 {[%clk 0:00:09]} 39. Re8+ {[%clk 0:00:19]}  Kc7 {[%clk 0:00:09]} 40. Re2 {[%clk 0:00:20]}  a5 {[%clk 0:00:09]} 41. Ke6 {[%clk 0:00:20]}  a4 {[%clk 0:00:07]} 42. Ra2 {[%clk 0:00:21]}  b5 {[%clk 0:00:07]} 43. Rb2 {[%clk 0:00:21]}  Rd5 {[%clk 0:00:08]} 44. Rc2 {[%clk 0:00:17]}  Kb6 {[%clk 0:00:08]} 45. Rc1 {[%clk 0:00:17]}  b4 {[%clk 0:00:08]} 46. Rb1 {[%clk 0:00:17]}  Kb5 {[%clk 0:00:08]} 47. Rc1 {[%clk 0:00:17]}  a3 {[%clk 0:00:08]} 48. Rb1 {[%clk 0:00:16]}  Ka4 {[%clk 0:00:08]} 49. Rc1 {[%clk 0:00:13]}  Kb5 {[%clk 0:00:08]} 50. Rb1 {[%clk 0:00:12]}  Rd3 {[%clk 0:00:08]} 51. Ke5 {[%clk 0:00:11]}  a2 {[%clk 0:00:09]} 52. Ra1 {[%clk 0:00:10]}  b3 {[%clk 0:00:09]} 53. Ke4 {[%clk 0:00:09]}  Rd2 {[%clk 0:00:09]} 54. Ke3 {[%clk 0:00:09]}  Rb2 {[%clk 0:00:09]} 55. Kd3 {[%clk 0:00:09]}  Rb1 {[%clk 0:00:10]} 56. Kc3 {[%clk 0:00:07]}  Rxa1 {[%clk 0:00:10]} 57. Kxb3 {[%clk 0:00:08]}  Rf1 {[%clk 0:00:10]} 58. Kxa2 {[%clk 0:00:08]}  Rf3 {[%clk 0:00:11]} 59. Kb2 {[%clk 0:00:08]}  Kc4 {[%clk 0:00:11]} 60. Kc2 {[%clk 0:00:09]}  Rf2+ {[%clk 0:00:12]} 61. Kc1 {[%clk 0:00:08]}  Kd3 {[%clk 0:00:12]} 62. Kb1 {[%clk 0:00:08]}  Kc3 {[%clk 0:00:12]} 63. Ka1 {[%clk 0:00:08]}  Rf1+ {[%clk 0:00:12]} 64. Ka2 {[%clk 0:00:07]}  Re1 {[%clk 0:00:13]} 65. Ka3 {[%clk 0:00:07]}  Ra1# {[%clk 0:00:14]} 0-1


[Site "https://www.chess.com"]

[Event "Titled Tuesday Blitz March 07 Early 2023"]
[White "Wilson, Elvin"]
[Black "Johnson, Ben"]
[WhiteFideId "2014874"]
[BlackFideId "2010917"]
[WhiteElo "2278"]
[BlackElo "2148"]
[Result "1-0"]
[Round "04"]
[TimeControl "180+2"]
[Date "2023.03.07"]
[WhiteClock "0:00:27"]
[BlackClock "0:00:03"]

1. c4 {[%clk 0:03:00]}  e6 {[%clk 0:02:49]} 2. g3 {[%clk 0:03:00]}  d5 {[%clk 0:02:35]} 3. Bg2 {[%clk 0:02:59]}  Nf6 {[%clk 0:02:34]} 4. Nf3 {[%clk 0:02:59]}  Be7 {[%clk 0:02:32]} 5. O-O {[%clk 0:02:59]}  O-O {[%clk 0:02:33]} 6. b3 {[%clk 0:03:00]}  c5 {[%clk 0:02:32]} 7. e3 {[%clk 0:02:55]}  Nc6 {[%clk 0:02:19]} 8. Bb2 {[%clk 0:02:55]}  d4 {[%clk 0:02:13]} 9. exd4 {[%clk 0:02:54]}  cxd4 {[%clk 0:02:10]} 10. Re1 {[%clk 0:02:54]}  Re8 {[%clk 0:01:56]} 11. a3 {[%clk 0:02:42]}  a5 {[%clk 0:01:56]} 12. d3 {[%clk 0:02:29]}  Bc5 {[%clk 0:01:48]} 13. Ne5 {[%clk 0:02:22]}  Nxe5 {[%clk 0:01:42]} 14. Rxe5 {[%clk 0:02:22]}  Qc7 {[%clk 0:01:33]} 15. Re1 {[%clk 0:01:58]}  e5 {[%clk 0:01:31]} 16. Nd2 {[%clk 0:01:58]}  Bg4 {[%clk 0:01:26]} 17. Bf3 {[%clk 0:01:57]}  Qd7 {[%clk 0:01:07]} 18. Bxg4 {[%clk 0:01:47]}  Qxg4 {[%clk 0:01:08]} 19. Ne4 {[%clk 0:01:35]}  Qc8 {[%clk 0:00:59]} 20. Nxf6+ {[%clk 0:01:32]}  gxf6 {[%clk 0:01:00]} 21. Qf3 {[%clk 0:01:24]}  f5 {[%clk 0:00:38]} 22. Re2 {[%clk 0:01:21]}  Re6 {[%clk 0:00:32]} 23. Rae1 {[%clk 0:01:20]}  Bd6 {[%clk 0:00:18]} 24. Qxf5 {[%clk 0:01:17]}  Rg6 {[%clk 0:00:18]} 25. Qxc8+ {[%clk 0:01:06]}  Rxc8 {[%clk 0:00:19]} 26. Bc1 {[%clk 0:01:03]}  f6 {[%clk 0:00:18]} 27. Bd2 {[%clk 0:01:02]}  Bxa3 {[%clk 0:00:14]} 28. Bxa5 {[%clk 0:01:01]}  Ra8 {[%clk 0:00:15]} 29. Bd2 {[%clk 0:00:58]}  Bf8 {[%clk 0:00:10]} 30. f4 {[%clk 0:00:48]}  Ra3 {[%clk 0:00:09]} 31. Rb1 {[%clk 0:00:43]}  Ra2 {[%clk 0:00:06]} 32. Kf1 {[%clk 0:00:40]}  Bh6 {[%clk 0:00:03]} 33. f5 {[%clk 0:00:27]} 1-0


[Site "https://www.chess.com"]

[Event "Titled Tuesday Blitz March 07 Early 2023"]
[White "Smietanska, Wiktoria"]
[Black "Chemin, Justo Reinaldo"]
[WhiteFideId "21869359"]
[BlackFideId "2101580"]
[WhiteElo "1910"]
[BlackElo "1940"]
[Result "1-0"]
[Round "04"]
[TimeControl "180+2"]
[Date "2023.03.07"]
[WhiteClock "0:00:04"]
[BlackClock "0:00:01"]

1. c4 {[%clk 0:02:56]}  e6 {[%clk 0:02:58]} 2. Nc3 {[%clk 0:02:55]}  d5 {[%clk 0:02:58]} 3. cxd5 {[%clk 0:02:52]}  exd5 {[%clk 0:02:57]} 4. d4 {[%clk 0:02:53]}  c6 {[%clk 0:02:54]} 5. Nf3 {[%clk 0:02:53]}  Bd6 {[%clk 0:02:54]} 6. Bg5 {[%clk 0:02:50]}  f6 {[%clk 0:02:53]} 7. Bh4 {[%clk 0:02:50]}  Ne7 {[%clk 0:02:52]} 8. e3 {[%clk 0:02:49]}  Nf5 {[%clk 0:02:50]} 9. Bg3 {[%clk 0:02:45]}  Bxg3 {[%clk 0:02:43]} 10. hxg3 {[%clk 0:02:45]}  Qd6 {[%clk 0:02:44]} 11. Bd3 {[%clk 0:02:42]}  Nh6 {[%clk 0:02:28]} 12. Qc2 {[%clk 0:02:39]}  f5 {[%clk 0:02:24]} 13. Ne5 {[%clk 0:02:36]}  Be6 {[%clk 0:02:18]} 14. a3 {[%clk 0:02:23]}  Nd7 {[%clk 0:02:18]} 15. Nf3 {[%clk 0:02:15]}  O-O {[%clk 0:02:05]} 16. Ng5 {[%clk 0:01:47]}  Nf6 {[%clk 0:01:58]} 17. b4 {[%clk 0:01:20]}  Ne4 {[%clk 0:01:55]} 18. Nf3 {[%clk 0:00:47]}  Ng4 {[%clk 0:01:53]} 19. O-O {[%clk 0:00:40]}  Rf6 {[%clk 0:01:38]} 20. b5 {[%clk 0:00:37]}  Rh6 {[%clk 0:01:34]} 21. bxc6 {[%clk 0:00:32]}  bxc6 {[%clk 0:01:33]} 22. Ne2 {[%clk 0:00:22]}  g5 {[%clk 0:01:22]} 23. Bxe4 {[%clk 0:00:17]}  fxe4 {[%clk 0:01:21]} 24. Nxg5 {[%clk 0:00:17]}  Bd7 {[%clk 0:01:13]} 25. Nf4 {[%clk 0:00:17]}  Rf8 {[%clk 0:01:10]} 26. Rfc1 {[%clk 0:00:07]}  Qf6 {[%clk 0:01:01]} 27. Ngh3 {[%clk 0:00:06]}  Be8 {[%clk 0:00:48]} 28. Rab1 {[%clk 0:00:06]}  Qf5 {[%clk 0:00:41]} 29. Rb7 {[%clk 0:00:05]}  Nf6 {[%clk 0:00:40]} 30. Qc5 {[%clk 0:00:03]}  Nh5 {[%clk 0:00:29]} 31. Rcb1 {[%clk 0:00:03]}  Nxf4 {[%clk 0:00:27]} 32. Nxf4 {[%clk 0:00:04]}  Qg4 {[%clk 0:00:22]} 33. Qe7 {[%clk 0:00:04]}  Qf5 {[%clk 0:00:02]} 34. Rxa7 {[%clk 0:00:04]}  Qf7 {[%clk 0:00:01]} 35. Qxf7+ {[%clk 0:00:04]}  Bxf7 {[%clk 0:00:01]} 36. Rbb7 {[%clk 0:00:04]} 1-0


[Site "https://www.chess.com"]

[Event "Titled Tuesday Blitz March 07 Early 2023"]
[White "Pissama Ntsaou, Martial"]
[Black "Prieto Aranguren, Alain"]
[WhiteFideId "17400864"]
[BlackFideId "2268906"]
[WhiteElo "2060"]
[BlackElo "2209"]
[Result "1-0"]
[Round "04"]
[TimeControl "180+2"]
[Date "2023.03.07"]
[WhiteClock "0:00:17"]
[BlackClock "0:00:13"]

1. e4 {[%clk 0:03:00]}  c6 {[%clk 0:02:17]} 2. d4 {[%clk 0:02:59]}  d5 {[%clk 0:02:07]} 3. e5 {[%clk 0:02:59]}  c5 {[%clk 0:02:02]} 4. dxc5 {[%clk 0:03:00]}  Nc6 {[%clk 0:02:01]} 5. Nf3 {[%clk 0:02:47]}  Bg4 {[%clk 0:02:00]} 6. Bb5 {[%clk 0:02:47]}  e6 {[%clk 0:01:59]} 7. h3 {[%clk 0:02:33]}  Bxf3 {[%clk 0:01:58]} 8. Qxf3 {[%clk 0:02:33]}  Bxc5 {[%clk 0:01:56]} 9. O-O {[%clk 0:02:31]}  Ne7 {[%clk 0:01:56]} 10. Bg5 {[%clk 0:02:29]}  O-O {[%clk 0:01:53]} 11. c4 {[%clk 0:02:25]}  Nxe5 {[%clk 0:01:50]} 12. Qg3 {[%clk 0:02:25]}  Nxc4 {[%clk 0:01:46]} 13. Bxc4 {[%clk 0:02:24]}  dxc4 {[%clk 0:01:46]} 14. Rd1 {[%clk 0:02:24]}  Qb6 {[%clk 0:01:41]} 15. Nd2 {[%clk 0:02:18]}  Nf5 {[%clk 0:01:38]} 16. Qc3 {[%clk 0:02:12]}  Bxf2+ {[%clk 0:01:33]} 17. Kh2 {[%clk 0:02:10]}  Rac8 {[%clk 0:01:23]} 18. Nxc4 {[%clk 0:02:04]}  Bg3+ {[%clk 0:01:10]} 19. Kh1 {[%clk 0:02:02]}  Qc6 {[%clk 0:01:04]} 20. Rac1 {[%clk 0:01:38]}  Bb8 {[%clk 0:01:00]} 21. Rd3 {[%clk 0:01:16]}  b5 {[%clk 0:00:50]} 22. Nd2 {[%clk 0:01:11]}  Qxc3 {[%clk 0:00:48]} 23. Rcxc3 {[%clk 0:01:11]}  Rxc3 {[%clk 0:00:48]} 24. bxc3 {[%clk 0:01:11]}  Rc8 {[%clk 0:00:41]} 25. Ne4 {[%clk 0:01:05]}  h6 {[%clk 0:00:37]} 26. Bd2 {[%clk 0:01:02]}  Kh7 {[%clk 0:00:29]} 27. Rd7 {[%clk 0:01:01]}  Kg6 {[%clk 0:00:26]} 28. g4 {[%clk 0:00:58]}  Nh4 {[%clk 0:00:25]} 29. Nd6 {[%clk 0:00:50]}  Bxd6 {[%clk 0:00:24]} 30. Rxd6 {[%clk 0:00:51]}  a5 {[%clk 0:00:21]} 31. Rd3 {[%clk 0:00:37]}  b4 {[%clk 0:00:20]} 32. cxb4 {[%clk 0:00:35]}  axb4 {[%clk 0:00:20]} 33. Bxb4 {[%clk 0:00:35]}  Rc2 {[%clk 0:00:19]} 34. Be1 {[%clk 0:00:34]}  Ng2 {[%clk 0:00:12]} 35. Bg3 {[%clk 0:00:26]}  f5 {[%clk 0:00:10]} 36. gxf5+ {[%clk 0:00:25]}  exf5 {[%clk 0:00:10]} 37. a4 {[%clk 0:00:25]}  f4 {[%clk 0:00:09]} 38. Bxf4 {[%clk 0:00:24]}  Nxf4 {[%clk 0:00:09]} 39. Rg3+ {[%clk 0:00:25]}  Kf5 {[%clk 0:00:09]} 40. Ra3 {[%clk 0:00:24]}  g5 {[%clk 0:00:09]} 41. a5 {[%clk 0:00:24]}  Rc7 {[%clk 0:00:09]} 42. a6 {[%clk 0:00:24]}  Ra7 {[%clk 0:00:10]} 43. Kh2 {[%clk 0:00:24]}  h5 {[%clk 0:00:10]} 44. Kg3 {[%clk 0:00:24]}  Ne6 {[%clk 0:00:09]} 45. Ra5+ {[%clk 0:00:24]}  Kf6 {[%clk 0:00:09]} 46. Kf3 {[%clk 0:00:24]}  Nd4+ {[%clk 0:00:09]} 47. Ke4 {[%clk 0:00:24]}  Nc6 {[%clk 0:00:09]} 48. Ra1 {[%clk 0:00:22]}  Re7+ {[%clk 0:00:09]} 49. Kd5 {[%clk 0:00:22]}  Na7 {[%clk 0:00:10]} 50. Rf1+ {[%clk 0:00:19]}  Kg6 {[%clk 0:00:09]} 51. Kd6 {[%clk 0:00:19]}  Re3 {[%clk 0:00:08]} 52. Ra1 {[%clk 0:00:19]}  g4 {[%clk 0:00:08]} 53. h4 {[%clk 0:00:18]}  g3 {[%clk 0:00:08]} 54. Kc7 {[%clk 0:00:19]}  g2 {[%clk 0:00:07]} 55. Kb7 {[%clk 0:00:19]}  Re7+ {[%clk 0:00:07]} 56. Kb6 {[%clk 0:00:19]}  Kf5 {[%clk 0:00:07]} 57. Rg1 {[%clk 0:00:18]}  Rg7 {[%clk 0:00:08]} 58. Rxg2 {[%clk 0:00:17]}  Kf6 {[%clk 0:00:08]} 59. Rxg7 {[%clk 0:00:16]}  Kxg7 {[%clk 0:00:08]} 60. Kxa7 {[%clk 0:00:17]}  Kf6 {[%clk 0:00:09]} 61. Kb7 {[%clk 0:00:17]}  Kf5 {[%clk 0:00:09]} 62. a7 {[%clk 0:00:18]}  Kg4 {[%clk 0:00:10]} 63. a8=Q {[%clk 0:00:18]}  Kxh4 {[%clk 0:00:10]} 64. Qa1 {[%clk 0:00:17]}  Kg3 {[%clk 0:00:11]} 65. Qh1 {[%clk 0:00:17]}  h4 {[%clk 0:00:11]} 66. Kc6 {[%clk 0:00:17]}  h3 {[%clk 0:00:12]} 67. Kd5 {[%clk 0:00:18]}  h2 {[%clk 0:00:13]} 68. Kd4 {[%clk 0:00:17]} 1-0


[Site "https://www.chess.com"]